[Event "3. Open Bohumin 2020"]
[Site "Bohumin"]
[Date "2020.07.19"]
[Round "2.16"]
[White "Maroszczyk, Wieslaw"]
[Black "Weinzettl, Ernst"]
[Result "0-1"]
[ECO "E73"]
[WhiteElo "1867"]
[BlackElo "2166"]
[Annotator "RC"]
[PlyCount "74"]
[EventDate "2020.07.18"]
[EventType "swiss"]
[EventCountry "CZE"]
[SourceTitle "playchess.com"]
[Source "ChessBase"]
[SourceQuality "1"]
[TimeControl "40/5400+30:900+30"]

1. d4 {[%emt 0:00:00]} Nf6 {[%emt 0:00:00]} 2. c4 {[%emt 0:00:00]} g6 {[%emt 0:00:11]} 3. Nc3 {[%emt 0:00:07]} Bg7 {[%emt 0:00:13]} 4. e4 {[%emt 0:00:09]} d6 {[%emt 0:00:10]} 5. Be2 {[%emt 0:00:09]} Nbd7 {[%emt 0:02:31]} 6. Bg5 {[%emt 0:02:30]} h6 {[%emt 0:00:44]} 7. Be3 {[%emt 0:00:35]} e5 {[%emt 0:00:46]} 8. d5 {[%emt 0:02:48]} Nc5 {[%emt 0:00:15]} 9. f3 {[%emt 0:00:08]} a5 {[%emt 0:00:39]} 10. g4 {[%emt 0:00:35]} h5 {[%emt 0:00:26]} 11. g5 {[%emt 0:02:57]} Nh7 {[%emt 0:00:40]} 12. h4 {[%emt 0:03:29]} O-O {[%emt 0:09:22]} 13. Qd2 {[%emt 0:02:22]} f6 {[%emt 0:06:14]} 14. Nh3 {[%emt 0:06:57]} Bxh3 {[%emt 0:05:39]} 15. Rxh3 {[%emt 0:00:11]} fxg5 {[%emt 0:00:09]} 16. hxg5 {[%emt 0:03:39]} Rf4 {[%emt 0:02:54]} 17. Bxf4 {[%emt 0:02:14]} exf4 {[%emt 0:00:12]} 18. O-O-O {[%emt 0:07:11]} Qxg5 {[%emt 0:12:26]} 19. Rhh1 {[%emt 0:04:24]} Qf6 {[%emt 0:08:31]} 20. Rdg1 {[%emt 0:09:19]} Nf8 {[%emt 0:02:53]} 21. Bd1 {[%emt 0:03:23]} a4 {[%emt 0:03:20]} 22. a3 {[%emt 0:02:01]} Nfd7 {[%emt 0:00:34]} 23. Bc2 {[%emt 0:09:23]} Ne5 {[%emt 0:04:38]} 24. Qe2 {[%emt 0:01:29]} Ra5 {[%emt 0:10:39]} 25. Rh2 {[%emt 0:14:21]} Nb3+ {[%emt 0:02:20]} 26. Bxb3 {[%emt 0:03:06]} axb3 {[%emt 0:00:11]} 27. Rhg2 {[%emt 0:07:19]} Rc5 {[%emt 0:01:38]} 28. Kb1 {[%emt 0:00:22]} Kh7 {[%emt 0:07:49]} 29. Qd1 {[%emt 0:02:37]} b6 {[%emt 0:02:22]} 30. Qf1 {[%emt 0:02:23]} Nxc4 {[%emt 0:02:57]} 31. Na4 {[%emt 0:01:27]} Nxa3+ {[%emt 0:00:21]} 32. Ka1 {[%emt 0:00:34]} Ra5 {[%emt 0:02:09]} 33. e5 {[%emt 0:01:32]} Qxe5 {[%emt 0:00:18]} 34. Qd3 {[%emt 0:02:29]} Nc2+ {[%emt 0:05:09]} 35. Kb1 {[%emt 0:00:48]} Rxa4 {[%emt 0:00:12]} 36. Qxb3 {[%emt 0:00:28]} Ra1+ {[%emt 0:01:07]} 37. Kxc2 {[%emt 0:00:47]} Rxg1 {[%emt 0:00:16]} 0-1

[Event "3. Open Bohumin 2020"]
[Site "Bohumin"]
[Date "2020.07.21"]
[Round "4.2"]
[White "Pulpan, Jakub"]
[Black "Michenka, Jozef"]
[Result "1-0"]
[ECO "C09"]
[WhiteElo "2407"]
[BlackElo "2299"]
[Annotator "ChessBase"]
[PlyCount "53"]
[EventDate "2020.07.18"]
[EventType "swiss"]
[EventCountry "CZE"]
[SourceTitle "playchess.com"]
[Source "ChessBase"]
[SourceQuality "1"]
[TimeControl "40/5400+30:900+30"]

1. e4 {[%emt 0:00:00]} e6 {[%emt 0:00:02]} 2. d4 {[%emt 0:02:30]} d5 {[%emt 0:00:23]} 3. Nd2 {[%emt 0:00:21]} c5 {[%emt 0:00:09]} 4. Ngf3 {[%emt 0:01:00]} Nc6 {[%emt 0:02:09]} 5. exd5 {[%emt 0:01:24]} exd5 {[%emt 0:00:08]} 6. Bb5 {[%emt 0:01:30]} Bd6 {[%emt 0:00:07]} 7. dxc5 {[%emt 0:01:29]} Bxc5 {[%emt 0:00:06]} 8. O-O {[%emt 0:03:58]} Nge7 {[%emt 0:00:14]} 9. Nb3 {[%emt 0:04:38]} Bd6 {[%emt 0:00:06]} 10. Nbd4 {[%emt 0:03:39]} O-O {[%emt 0:00:21]} 11. c3 {[%emt 0:01:48]} Bg4 {[%emt 0:02:09]} 12. Be2 {[%emt 0:01:30]} a6 {[%emt 0:01:58]} 13. Bg5 {[%emt 0:04:06]} Qc7 {[%emt 0:02:09]} 14. h3 {[%emt 0:00:48]} Bh5 {[%emt 0:00:24]} 15. Qd2 {[%emt 0:01:15]} Rfe8 {[%emt 0:15:14]} 16. Rfe1 {[%emt 0:00:22]} f6 {[%emt 0:01:46]} 17. Ne6 {[%emt 0:24:17]} Qd7 {[%emt 0:00:40]} 18. Nxg7 {[%emt 0:00:13]} Kxg7 {[%emt 0:01:43]} 19. Bxf6+ {[%emt 0:00:13]} Kxf6 {[%emt 0:05:38]} 20. Qg5+ {[%emt 0:00:13]} Kf7 {[%emt 0:00:32]} 21. Qxh5+ {[%emt 0:00:21]} Kg8 {[%emt 0:00:53]} 22. Bd3 {[%emt 0:01:06]} Ng6 {[%emt 0:02:10]} 23. Bxg6 {[%emt 0:00:28]} hxg6 {[%emt 0:00:07]} 24. Qxg6+ {[%emt 0:00:09]} Kh8 {[%emt 0:03:12]} 25. Ng5 {[%emt 0:00:57]} Rf8 {[%emt 0:00:07]} 26. Qh6+ {[%emt 0:00:41]} Kg8 {[%emt 0:00:03]} 27. Re6 {[%emt 0:00:11]} 1-0

[Event "3. Open Bohumin 2020"]
[Site "Bohumin"]
[Date "2020.07.21"]
[Round "4.4"]
[White "Nytra, Ondrej"]
[Black "Molenda, Marcin"]
[Result "0-1"]
[ECO "B43"]
[WhiteElo "2112"]
[BlackElo "2363"]
[Annotator "ChessBase"]
[PlyCount "46"]
[EventDate "2020.07.18"]
[EventType "swiss"]
[EventCountry "CZE"]
[SourceTitle "playchess.com"]
[Source "ChessBase"]
[SourceQuality "1"]
[TimeControl "40/5400+30:900+30"]

1. e4 {[%emt 0:00:00]} c5 {[%emt 0:00:00]} 2. Nf3 {[%emt 0:00:00]} e6 {[%emt 0:00:00]} 3. d4 {[%emt 0:00:00]} cxd4 {[%emt 0:00:00]} 4. Nxd4 {[%emt 0:00:00]} a6 {[%emt 0:00:00]} 5. Nc3 {[%emt 0:00:00]} b5 {[%emt 0:00:00]} 6. a3 {[%emt 0:01:27]} Bb7 {[%emt 0:00:13]} 7. Be2 {[%emt 0:02:47]} Qc7 {[%emt 0:01:17]} 8. O-O {[%emt 0:05:26]} Nf6 {[%emt 0:01:37]} 9. Bf3 {[%emt 0:00:17]} d6 {[%emt 0:03:01]} 10. Bg5 {[%emt 0:03:29]} Nbd7 {[%emt 0:00:53]} 11. Re1 {[%emt 0:03:30]} Be7 {[%emt 0:02:29]} 12. g3 {[%emt 0:03:05]} O-O {[%emt 0:02:22]} 13. Qe2 {[%emt 0:01:27]} Ne5 {[%emt 0:03:12]} 14. Bg2 {[%emt 0:00:18]} Nc4 {[%emt 0:02:27]} 15. Ndxb5 {[%emt 0:27:07]} axb5 {[%emt 0:01:17]} 16. Nxb5 {[%emt 0:00:04]} Qc5 {[%emt 0:19:25]} 17. e5 {[%emt 0:02:17]} Bxg2 {[%emt 0:01:51]} 18. exf6 {[%emt 0:02:30]} gxf6 {[%emt 0:28:46]} 19. Bh6 {[%emt 0:00:59]} Bh3 {[%emt 0:00:17]} 20. Bxf8 {[%emt 0:05:33]} Rxf8 {[%emt 0:00:42]} 21. a4 {[%emt 0:01:29]} Ne5 {[%emt 0:02:15]} 22. Reb1 {[%emt 0:01:00]} Qd5 {[%emt 0:01:26]} 23. f4 {[%emt 0:00:47]} Qc5+ {[%emt 0:04:02]} 0-1

[Event "3. Open Bohumin 2020"]
[Site "Bohumin"]
[Date "2020.07.21"]
[Round "4.5"]
[White "Niedbala, Bartlomiej"]
[Black "Weinzettl, Ernst"]
[Result "1/2-1/2"]
[ECO "E73"]
[WhiteElo "2379"]
[BlackElo "2166"]
[Annotator "ChessBase"]
[PlyCount "65"]
[EventDate "2020.07.18"]
[EventType "swiss"]
[EventCountry "CZE"]
[SourceTitle "playchess.com"]
[Source "ChessBase"]
[SourceQuality "1"]
[TimeControl "40/5400+30:900+30"]

1. d4 {[%emt 0:00:00]} Nf6 {[%emt 0:00:00]} 2. c4 {[%emt 0:00:00]} g6 {[%emt 0:00:00]} 3. Nc3 {[%emt 0:00:00]} Bg7 {[%emt 0:00:02]} 4. e4 {[%emt 0:00:00]} d6 {[%emt 0:00:12]} 5. Be2 {[%emt 0:00:01]} O-O {[%emt 0:00:16]} 6. Be3 {[%emt 0:00:03]} e5 {[%emt 0:00:23]} 7. d5 {[%emt 0:00:05]} Na6 {[%emt 0:00:21]} 8. g4 {[%emt 0:00:04]} Nc5 {[%emt 0:00:15]} 9. f3 {[%emt 0:00:10]} h5 {[%emt 0:00:44]} 10. g5 {[%emt 0:01:02]} Nh7 {[%emt 0:00:15]} 11. h4 {[%emt 0:00:13]} f6 {[%emt 0:00:13]} 12. gxf6 {[%emt 0:00:23]} Bxf6 {[%emt 0:00:12]} 13. Bf2 {[%emt 0:00:02]} Be7 {[%emt 0:00:14]} 14. Kd2 {[%emt 0:00:04]} c6 {[%emt 0:06:20]} 15. Kc2 {[%emt 0:31:28]} cxd5 {[%emt 0:24:02]} 16. cxd5 {[%emt 0:06:43]} Qc7 {[%emt 0:10:55]} 17. Qe1 {[%emt 0:13:57]} Bd7 {[%emt 0:02:39]} 18. Rc1 {[%emt 0:01:28]} b5 {[%emt 0:14:16]} 19. Kb1 {[%emt 0:00:42]} b4 {[%emt 0:02:41]} 20. Nd1 {[%emt 0:01:28]} Rab8 {[%emt 0:07:05]} 21. Qf1 {[%emt 0:16:44]} Qa5 {[%emt 0:02:56]} 22. Bxc5 {[%emt 0:01:55]} dxc5 {[%emt 0:00:09]} 23. Ne3 {[%emt 0:00:55]} Rf4 {[%emt 0:09:48]} 24. Qg2 {[%emt 0:03:43]} Nf8 {[%emt 0:04:51]} 25. Bc4 {[%emt 0:09:40]} Kh7 {[%emt 0:01:45]} 26. Qg3 {[%emt 0:02:16]} Qd8 {[%emt 0:01:45]} 27. Ng2 {[%emt 0:00:39]} Bd6 {[%emt 0:00:48]} 28. Nh3 {[%emt 0:04:28]} Bxh3 {[%emt 0:01:30]} 29. Rxh3 {[%emt 0:00:13]} Nd7 {[%emt 0:00:39]} 30. Rg1 {[%emt 0:00:54]} Qf6 {[%emt 0:02:20]} 31. Ne3 {[%emt 0:03:42]} Nb6 {[%emt 0:02:57]} 32. Qg2 {[%emt 0:01:15]} Rg8 {[%emt 0:01:31]} 33. Qg3 {[%emt 0:01:22]} 1/2-1/2

[Event "3. Open Bohumin 2020"]
[Site "Bohumin"]
[Date "2020.07.21"]
[Round "4.6"]
[White "Neumann, Filip"]
[Black "Czerwonski, Aleksander"]
[Result "0-1"]
[ECO "B07"]
[WhiteElo "2042"]
[BlackElo "2362"]
[Annotator "ChessBase"]
[PlyCount "62"]
[EventDate "2020.07.18"]
[EventType "swiss"]
[EventCountry "CZE"]
[SourceTitle "playchess.com"]
[Source "ChessBase"]
[SourceQuality "1"]
[TimeControl "40/5400+30:900+30"]

1. e4 {[%emt 0:00:00]} d6 {[%emt 0:00:00]} 2. d4 {[%emt 0:00:00]} Nf6 {[%emt 0:00:00]} 3. Nc3 {[%emt 0:00:00]} g6 {[%emt 0:00:00]} 4. Bf4 {[%emt 0:00:25]} Nc6 {[%emt 0:07:24]} 5. Qd2 {[%emt 0:00:54]} Bg7 {[%emt 0:07:47]} 6. O-O-O {[%emt 0:01:11]} O-O {[%emt 0:03:55]} 7. Nf3 {[%emt 0:00:13]} Bg4 {[%emt 0:01:31]} 8. Qe3 {[%emt 0:02:23]} Nh5 {[%emt 0:05:16]} 9. Bh6 {[%emt 0:11:43]} Bxf3 {[%emt 0:01:07]} 10. gxf3 {[%emt 0:00:27]} e6 {[%emt 0:10:46]} 11. Bxg7 {[%emt 0:01:38]} Kxg7 {[%emt 0:00:11]} 12. f4 {[%emt 0:04:30]} Qh4 {[%emt 0:03:45]} 13. Ne2 {[%emt 0:04:31]} d5 {[%emt 0:14:06]} 14. e5 {[%emt 0:07:11]} f6 {[%emt 0:04:59]} 15. Qh3 {[%emt 0:08:55]} Qxh3 {[%emt 0:01:01]} 16. Bxh3 {[%emt 0:00:22]} fxe5 {[%emt 0:07:54]} 17. Bxe6 {[%emt 0:00:38]} Nxd4 {[%emt 0:14:03]} 18. Nxd4 {[%emt 0:01:35]} exd4 {[%emt 0:00:37]} 19. Bxd5 {[%emt 0:01:07]} c6 {[%emt 0:00:48]} 20. Bf3 {[%emt 0:00:54]} Rxf4 {[%emt 0:01:17]} 21. Bxh5 {[%emt 0:00:06]} gxh5 {[%emt 0:00:02]} 22. Rhg1+ {[%emt 0:01:27]} Kf6 {[%emt 0:01:35]} 23. Rg2 {[%emt 0:00:50]} Re8 {[%emt 0:00:25]} 24. Kd2 {[%emt 0:02:38]} c5 {[%emt 0:01:52]} 25. Re1 {[%emt 0:01:24]} Rxe1 {[%emt 0:00:28]} 26. Kxe1 {[%emt 0:00:02]} Rg4 {[%emt 0:00:27]} 27. Rg3 {[%emt 0:01:59]} Rxg3 {[%emt 0:00:07]} 28. hxg3 {[%emt 0:00:11]} Kg5 {[%emt 0:00:21]} 29. Ke2 {[%emt 0:02:25]} h4 {[%emt 0:00:41]} 30. Kf3 {[%emt 0:00:11]} h3 {[%emt 0:01:06]} 31. a4 {[%emt 0:00:06]} c4 {[%emt 0:00:42]} 0-1

[Event "3. Open Bohumin 2020"]
[Site "Bohumin"]
[Date "2020.07.21"]
[Round "4.9"]
[White "Kroliczek, Gabriela"]
[Black "Dobrovolsky, Ladislav"]
[Result "0-1"]
[ECO "B43"]
[WhiteElo "1976"]
[BlackElo "2277"]
[Annotator "ChessBase"]
[PlyCount "56"]
[EventDate "2020.07.18"]
[EventType "swiss"]
[EventCountry "CZE"]
[SourceTitle "playchess.com"]
[Source "ChessBase"]
[SourceQuality "1"]
[TimeControl "40/5400+30:900+30"]

1. e4 {[%emt 0:00:00]} c5 {[%emt 0:00:00]} 2. Nf3 {[%emt 0:00:00]} e6 {[%emt 0:00:00]} 3. d4 {[%emt 0:00:00]} cxd4 {[%emt 0:00:00]} 4. Nxd4 {[%emt 0:00:00]} a6 {[%emt 0:00:00]} 5. Nc3 {[%emt 0:00:42]} Qc7 {[%emt 0:00:00]} 6. Be3 {[%emt 0:01:00]} Nf6 {[%emt 0:00:16]} 7. f3 {[%emt 0:00:44]} Bb4 {[%emt 0:03:13]} 8. Bd2 {[%emt 0:04:58]} O-O {[%emt 0:00:41]} 9. Bd3 {[%emt 0:01:30]} d5 {[%emt 0:02:33]} 10. Nde2 {[%emt 0:04:17]} Nc6 {[%emt 0:01:58]} 11. f4 {[%emt 0:06:13]} dxe4 {[%emt 0:18:19]} 12. Nxe4 {[%emt 0:02:33]} Nxe4 {[%emt 0:00:14]} 13. Bxe4 {[%emt 0:00:03]} Rd8 {[%emt 0:03:16]} 14. c3 {[%emt 0:00:48]} Bc5 {[%emt 0:00:10]} 15. Qc2 {[%emt 0:05:33]} f5 {[%emt 0:01:14]} 16. Bxc6 {[%emt 0:04:54]} Qxc6 {[%emt 0:00:54]} 17. O-O-O {[%emt 0:01:27]} Qxg2 {[%emt 0:03:07]} 18. Ng3 {[%emt 0:01:02]} Bd7 {[%emt 0:02:01]} 19. Rde1 {[%emt 0:03:19]} Qd5 {[%emt 0:16:58]} 20. Re5 {[%emt 0:07:09]} Qc6 {[%emt 0:09:18]} 21. Rhe1 {[%emt 0:02:32]} Bd6 {[%emt 0:01:14]} 22. R5e2 {[%emt 0:00:15]} Rac8 {[%emt 0:00:23]} 23. h4 {[%emt 0:02:46]} Qd5 {[%emt 0:02:08]} 24. Kb1 {[%emt 0:00:33]} Bb5 {[%emt 0:00:24]} 25. Qc1 {[%emt 0:04:13]} Bxe2 {[%emt 0:01:24]} 26. Nxe2 {[%emt 0:00:24]} Bc5 {[%emt 0:00:34]} 27. Be3 {[%emt 0:02:58]} Qd3+ {[%emt 0:00:25]} 28. Ka1 {[%emt 0:00:06]} Bxe3 {[%emt 0:00:14]} 0-1

[Event "3. Open Bohumin 2020"]
[Site "Bohumin"]
[Date "2020.07.21"]
[Round "4.10"]
[White "Poysti, Nathanael"]
[Black "Grochol, Kamil"]
[Result "1-0"]
[ECO "D31"]
[WhiteElo "2209"]
[BlackElo "2023"]
[Annotator "ChessBase"]
[PlyCount "87"]
[EventDate "2020.07.18"]
[EventType "swiss"]
[EventCountry "CZE"]
[SourceTitle "playchess.com"]
[Source "ChessBase"]
[SourceQuality "1"]
[TimeControl "40/5400+30:900+30"]

1. c4 {[%emt 0:00:00]} e6 {[%emt 0:00:00]} 2. Nc3 {[%emt 0:00:00]} d5 {[%emt 0:00:00]} 3. d4 {[%emt 0:00:00]} a6 {[%emt 0:00:00]} 4. cxd5 {[%emt 0:00:00]} exd5 {[%emt 0:00:06]} 5. Bf4 {[%emt 0:00:12]} Nf6 {[%emt 0:02:55]} 6. e3 {[%emt 0:00:06]} Bd6 {[%emt 0:00:36]} 7. Bg5 {[%emt 0:00:06]} Be6 {[%emt 0:08:22]} 8. Bd3 {[%emt 0:00:09]} Nbd7 {[%emt 0:00:57]} 9. f4 {[%emt 0:00:19]} h6 {[%emt 0:06:17]} 10. Bh4 {[%emt 0:01:10]} g5 {[%emt 0:05:04]} 11. fxg5 {[%emt 0:00:06]} hxg5 {[%emt 0:09:04]} 12. Bxg5 {[%emt 0:00:02]} Rxh2 {[%emt 0:02:17]} 13. Rxh2 {[%emt 0:00:12]} Bxh2 {[%emt 0:00:09]} 14. Nge2 {[%emt 0:00:31]} Bd6 {[%emt 0:05:41]} 15. Nf4 {[%emt 0:01:06]} c6 {[%emt 0:09:05]} 16. Qf3 {[%emt 0:04:46]} Bg4 {[%emt 0:08:28]} 17. Qf2 {[%emt 0:08:50]} Qb6 {[%emt 0:10:08]} 18. Rc1 {[%emt 0:10:16]} O-O-O {[%emt 0:18:02]} 19. Bxf6 {[%emt 0:39:01]} Nxf6 {[%emt 0:00:07]} 20. Nfxd5 {[%emt 0:00:19]} Nxd5 {[%emt 0:00:13]} 21. Nxd5 {[%emt 0:00:01]} Qa5+ {[%emt 0:00:34]} 22. Nc3 {[%emt 0:00:03]} Qg5 {[%emt 0:06:38]} 23. Kd2 {[%emt 0:03:49]} Re8 {[%emt 0:03:35]} 24. Rf1 {[%emt 0:06:08]} Kb8 {[%emt 0:01:06]} 25. Ne4 {[%emt 0:02:32]} Qa5+ {[%emt 0:01:20]} 26. Kc1 {[%emt 0:00:38]} Rxe4 {[%emt 0:01:41]} 27. Bxe4 {[%emt 0:00:17]} Qxa2 {[%emt 0:00:17]} 28. Qxf7 {[%emt 0:09:14]} Be6 {[%emt 0:00:32]} 29. Qf2 {[%emt 0:00:57]} Bc4 {[%emt 0:00:32]} 30. Rd1 {[%emt 0:02:36]} Bb3 {[%emt 0:00:36]} 31. Bb1 {[%emt 0:00:31]} Qa4 {[%emt 0:00:35]} 32. Rd3 {[%emt 0:00:26]} Bb4 {[%emt 0:00:31]} 33. g4 {[%emt 0:06:36]} Bc4 {[%emt 0:00:18]} 34. Rd1 {[%emt 0:00:45]} Bb3 {[%emt 0:00:33]} 35. Rg1 {[%emt 0:00:28]} Qb5 {[%emt 0:00:27]} 36. g5 {[%emt 0:00:46]} Qc4+ {[%emt 0:00:38]} 37. Bc2 {[%emt 0:00:03]} Ba3 {[%emt 0:00:34]} 38. bxa3 {[%emt 0:01:19]} Qc3 {[%emt 0:00:01]} 39. Qd2 {[%emt 0:02:32]} Qa1+ {[%emt 0:00:10]} 40. Bb1 {[%emt 0:00:07]} Qxa3+ {[%emt 0:00:05]} 41. Qb2 {[%emt 0:15:09]} Qb4 {[%emt 0:15:32]} 42. Bc2 {[%emt 0:00:30]} Qc4 {[%emt 0:00:34]} 43. Qxb3 {[%emt 0:00:08]} Qf1+ {[%emt 0:00:06]} 44. Rxf1 1-0

[Event "3. Open Bohumin 2020"]
[Site "Bohumin"]
[Date "2020.07.21"]
[Round "4.13"]
[White "Sramek, Vojtech"]
[Black "Adamczyk, Zuzanna"]
[Result "1-0"]
[ECO "B13"]
[WhiteElo "2177"]
[BlackElo "1968"]
[Annotator "ChessBase"]
[PlyCount "67"]
[EventDate "2020.07.18"]
[EventType "swiss"]
[EventCountry "CZE"]
[SourceTitle "playchess.com"]
[Source "ChessBase"]
[SourceQuality "1"]
[TimeControl "40/5400+30:900+30"]

1. e4 {[%emt 0:00:00]} c6 {[%emt 0:00:00]} 2. d4 {[%emt 0:00:00]} d5 {[%emt 0:00:00]} 3. exd5 {[%emt 0:00:56]} cxd5 {[%emt 0:00:09]} 4. c4 {[%emt 0:00:07]} Nf6 {[%emt 0:00:28]} 5. Nc3 {[%emt 0:00:08]} Nc6 {[%emt 0:00:46]} 6. Bg5 {[%emt 0:07:15]} dxc4 {[%emt 0:06:37]} 7. d5 {[%emt 0:07:48]} Ne5 {[%emt 0:13:29]} 8. Qd4 {[%emt 0:21:44]} Nd3+ {[%emt 0:18:31]} 9. Bxd3 {[%emt 0:00:15]} cxd3 {[%emt 0:00:07]} 10. Qxd3 {[%emt 0:11:41]} e6 {[%emt 0:12:22]} 11. O-O-O {[%emt 0:03:24]} Qa5 {[%emt 0:11:32]} 12. Qb5+ {[%emt 0:16:55]} Qxb5 {[%emt 0:01:59]} 13. Nxb5 {[%emt 0:00:06]} Nxd5 {[%emt 0:05:56]} 14. Nc7+ {[%emt 0:00:48]} Kd7 {[%emt 0:00:27]} 15. Nxa8 {[%emt 0:00:57]} Bd6 {[%emt 0:01:27]} 16. Nf3 {[%emt 0:01:46]} b5 {[%emt 0:01:53]} 17. Nd4 {[%emt 0:09:41]} Ba6 {[%emt 0:02:22]} 18. Nf5 {[%emt 0:01:22]} Rxa8 {[%emt 0:03:41]} 19. Nxd6 {[%emt 0:00:54]} Kxd6 {[%emt 0:00:08]} 20. Kb1 {[%emt 0:00:14]} b4 {[%emt 0:02:05]} 21. Rd4 {[%emt 0:01:34]} Bb5 {[%emt 0:01:36]} 22. Rhd1 {[%emt 0:00:57]} a5 {[%emt 0:01:11]} 23. f3 {[%emt 0:02:06]} Ba4 {[%emt 0:03:25]} 24. Rc1 {[%emt 0:01:02]} Bb5 {[%emt 0:01:03]} 25. Bf4+ {[%emt 0:01:16]} e5 {[%emt 0:03:15]} 26. Bg3 {[%emt 0:00:51]} f5 {[%emt 0:00:49]} 27. Rd2 {[%emt 0:02:54]} Bc6 {[%emt 0:02:20]} 28. Bxe5+ {[%emt 0:00:34]} Kxe5 {[%emt 0:01:19]} 29. Rxc6 {[%emt 0:00:07]} Ne3 {[%emt 0:01:56]} 30. Rc5+ {[%emt 0:02:41]} Kf4 {[%emt 0:01:28]} 31. Rd4+ {[%emt 0:00:56]} Kg5 {[%emt 0:00:14]} 32. g3 {[%emt 0:01:03]} g6 {[%emt 0:01:51]} 33. Re5 {[%emt 0:00:59]} Nf1 {[%emt 0:00:57]} 34. Re2 {[%emt 0:00:20]} 1-0

[Event "3. Open Bohumin 2020"]
[Site "Bohumin"]
[Date "2020.07.21"]
[Round "4.14"]
[White "Pilch, Roman"]
[Black "Gratze, Michael"]
[Result "1-0"]
[ECO "A05"]
[WhiteElo "2164"]
[BlackElo "1919"]
[Annotator "NA"]
[PlyCount "43"]
[EventDate "2020.07.18"]
[EventType "swiss"]
[EventCountry "CZE"]
[SourceTitle "playchess.com"]
[Source "ChessBase"]
[SourceQuality "1"]
[TimeControl "40/5400+30:900+30"]

1. Nf3 {[%emt 0:00:00]} Nf6 {[%emt 0:00:00]} 2. c4 {[%emt 0:00:00]} g6 {[%emt 0:00:00]} 3. Nc3 {[%emt 0:00:07]} Bg7 {[%emt 0:00:00]} 4. d4 {[%emt 0:00:26]} O-O {[%emt 0:00:00]} 5. h3 {[%emt 0:00:04]} d5 {[%emt 0:01:51]} 6. e3 {[%emt 0:01:30]} c5 {[%emt 0:01:30]} 7. dxc5 {[%emt 0:03:21] D94: Grünfeld: 4 Nf3 Bg7 5 e3.} Qa5 {[%emt 0:01:04]} 8. Bd2 {[%emt 0:00:58]} Qxc5 {[%emt 0:00:27]} 9. b4 {[%emt 0:08:17]} Qd6 {[%emt 0:03:52] [#]} 10. Qb3 $146 {[%emt 0:06:18]} ({Predecessor:} 10. c5 Qd8 11. Bb5 a5 12. a3 axb4 13. axb4 Rxa1 14. Qxa1 Ne4 15. Qa3 Nxd2 16. Nxd2 {½-½ (51) Ferreira Filho,J (1907)-Lima,A (1968) Fortaleza 2018}) 10... Ne4 {[%emt 0:06:49]} 11. Rd1 {[%emt 0:06:53]} a5 {[%emt 0:09:48]} 12. c5 {[%emt 0:09:49]} Qd8 {[%emt 0:06:26]} 13. Nxd5 {[%emt 0:04:58]} Be6 {[%emt 0:00:35]} 14. Bc4 {[%emt 0:01:08]} Nxd2 {[%emt 0:05:47]} 15. Rxd2 {[%emt 0:01:08]} Bxd5 {[%emt 0:03:43]} 16. Bxd5 {[%emt 0:02:29]} ({Don't do} 16. Rxd5 $6 Qc7 $16) 16... Qc8 {[%emt 0:00:22] [#]} 17. Ng5 $1 {[%emt 0:05:27]} e6 $2 {[%emt 0:03:35] [#]} (17... axb4 {was worth a try.} 18. Nxf7 (18. Qxb4 Nc6 $14) 18... e6 19. Bxe6 Qxc5) 18. Nxe6 $1 {[%emt 0:02:01]} axb4 {[%emt 0:00:13]} 19. Nxg7 {[%emt 0:05:01]} Kxg7 {[%emt 0:00:24]} 20. Qxb4 {[%emt 0:00:25]} Na6 $18 {[%emt 0:00:58]} (20... Nc6 21. Qc3+ Kg8) 21. Qb2+ {[%emt 0:02:22]} Kg8 {[%emt 0:00:33]} 22. Bxb7 {[%emt 0:00:28]} 1-0

[Event "3. Open Bohumin 2020"]
[Site "Bohumin"]
[Date "2020.07.21"]
[Round "4.15"]
[White "Warchol, Kamil"]
[Black "Kubos, Rostislav"]
[Result "1/2-1/2"]
[ECO "B47"]
[WhiteElo "1911"]
[BlackElo "2134"]
[Annotator "ChessBase"]
[PlyCount "68"]
[EventDate "2020.07.18"]
[EventType "swiss"]
[EventCountry "CZE"]
[SourceTitle "playchess.com"]
[Source "ChessBase"]
[SourceQuality "1"]
[TimeControl "40/5400+30:900+30"]

1. e4 {[%emt 0:00:00]} c5 {[%emt 0:00:00]} 2. Nf3 {[%emt 0:00:08]} e6 {[%emt 0:00:02]} 3. d4 {[%emt 0:00:33]} cxd4 {[%emt 0:00:05]} 4. Nxd4 {[%emt 0:00:27]} Nc6 {[%emt 0:00:12]} 5. Nc3 {[%emt 0:01:03]} Qc7 {[%emt 0:00:06]} 6. f4 {[%emt 0:01:06]} a6 {[%emt 0:04:06]} 7. Nb3 {[%emt 0:02:06]} d6 {[%emt 0:14:53]} 8. Bd3 {[%emt 0:05:14]} Nf6 {[%emt 0:02:57]} 9. Qf3 {[%emt 0:03:43]} Be7 {[%emt 0:02:03]} 10. Be3 {[%emt 0:03:48]} h5 {[%emt 0:04:13]} 11. O-O-O {[%emt 0:14:12]} b5 {[%emt 0:11:44]} 12. e5 {[%emt 0:08:17]} dxe5 {[%emt 0:07:56]} 13. fxe5 {[%emt 0:02:18]} Nd7 {[%emt 0:04:11]} 14. Qg3 {[%emt 0:12:22]} g5 {[%emt 0:12:01]} 15. Be4 {[%emt 0:11:23]} Bb7 {[%emt 0:03:54]} 16. Rhf1 {[%emt 0:02:58]} h4 {[%emt 0:06:34]} 17. Qf2 {[%emt 0:03:42]} Ncxe5 {[%emt 0:00:50]} 18. Bxb7 {[%emt 0:02:21]} Qxb7 {[%emt 0:00:46]} 19. Nc5 {[%emt 0:00:49]} Nxc5 {[%emt 0:04:59]} 20. Bxc5 {[%emt 0:00:14]} f6 {[%emt 0:00:42]} 21. Bxe7 {[%emt 0:06:26]} Qxe7 {[%emt 0:00:15]} 22. Ne4 {[%emt 0:00:53]} f5 {[%emt 0:09:32]} 23. Nd6+ {[%emt 0:01:02]} Kf8 {[%emt 0:00:02]} 24. Rfe1 {[%emt 0:05:25]} Rd8 {[%emt 0:01:19]} 25. Qb6 {[%emt 0:04:40]} Nf7 {[%emt 0:00:29]} 26. Nxf5 {[%emt 0:00:56]} Rxd1+ {[%emt 0:00:48]} 27. Kxd1 {[%emt 0:00:32]} Qd8+ {[%emt 0:00:24]} 28. Qxd8+ {[%emt 0:01:47]} Nxd8 {[%emt 0:00:02]} 29. Nd4 {[%emt 0:00:28]} Ke7 {[%emt 0:00:38]} 30. Ke2 {[%emt 0:00:57]} Rf8 {[%emt 0:01:16]} 31. Nf3 {[%emt 0:00:56]} Rf5 {[%emt 0:00:17]} 32. Kd2 {[%emt 0:01:01]} h3 {[%emt 0:02:43]} 33. Rg1 {[%emt 0:02:25]} g4 {[%emt 0:01:50]} 34. Nd4 {[%emt 0:00:43]} Rf2+ {[%emt 0:01:12]} 1/2-1/2